Workbook

Sheet FR
A1: Algarve/ Aero - Montage sur la façade / Position des trous de fixation
A3: Dimension | D3: par pas de lame ou au mm | E3: pas de lame | H3: mm
A4: couverture terrace | D4: Pivot | E4: 5000 | G4: Span | H4: 3000
A7: Specifications | D7: Nombre de trous Pivot | E7: =IF(Pivot<=5000,ROUNDUP(Pivot/1000,0),6) -> 5 | G7: Nombre de trous Span | H7: =IF(SPAN<=4000,ROUNDUP(SPAN/1000,0),4) -> 3
D8: Nombre de lames | E8: =IF(E3="stap",bankersround((Pivot-245)/215,0),ROUNDDOWN((Pivot-306)/215,0)) -> 21 | G8: Abaissement de trou | H8: =IF(E3="mm",15.5,0) -> 0
D9: longueur restante | E9: =IF(E3="stap",0,(Pivot-(E8-1)*215-80-130)/2) -> 245 | G9: Drainage vers | H9: P1
D10: lamel gat 1 | E10: =IF(E3="mm",E9+40+128.6,70+186.5+40) -> 296.5
A12: Trous de fixation dans le mur
A14: S1
G17: mm | I17: mm
F18: X1 | G18: =150+110 -> 260 | H18: Y1 | I18: =IF($H$9="P1",50+$H$8,30+$H$8) -> 50 | J18: 150
F19: X2 | G19: =IF(SPAN<=2000,0,IF(SPAN<=3000,J19+110,IF(SPAN<=4500,J19+110,0))) -> 1500 | H19: Y2 | I19: =IF(SPAN<=3000,0,IF(I21>I18,37+$H$8,43+$H$8)) -> 0 | J19: =IF(SPAN<=2000,0,IF(SPAN<=3000,bankersround(J18+(J21-J18)/2,1),IF(SPAN<=4500,bankersround(J18+(J21-J18)/3,1),0))) -> 1390
F20: X3 | G20: =IF(SPAN<=3000,0,J20+110) -> 0 | H20: Y3 | I20: =IF(SPAN<=2000,0,IF(SPAN<=3000,40+$H$8,IF(I21>I18,43+$H$8,37+$H$8))) -> 40 | J20: =IF(SPAN<=3000,0,bankersround(J18+(J21-J18)*(2/3),1)) -> 0
F21: X4 | G21: =(SPAN-150-110) -> 2740 | H21: Y4 | I21: =IF($H$9="P1",30+$H$8,50+$H$8) -> 30 | J21: =SPAN-J18-2*110 -> 2630
A24: S2
G27: mm | I27: mm
F28: X1 | G28: =150+110 -> 260 | H28: Y1 | I28: =IF($H$9="P2",30,50) -> 50 | J28: 150
F29: X2 | G29: =IF(SPAN<=2000,0,IF(SPAN<=3000,J29+110,IF(SPAN<=4500,J29+110,0))) -> 1500 | H29: Y2 | I29: =IF(SPAN<=2000,0,IF(SPAN<=3000,40,IF(I28>I31,43,37))) -> 40 | J29: =IF(SPAN<=2000,0,IF(SPAN<=3000,bankersround(J28+(J31-J28)/2,1),IF(SPAN<=4500,bankersround(J28+(J31-J28)/3,1),0))) -> 1390
F30: X3 | G30: =IF(SPAN<=3000,0,J30+110) -> 0 | H30: Y3 | I30: =IF(SPAN<=3000,0,IF(I28>I31,37,43)) -> 0 | J30: =IF(SPAN<=3000,0,bankersround(J28+(J31-J28)*(2/3),1)) -> 0
F31: X4 | G31: =(SPAN-150-110) -> 2740 | H31: Y4 | I31: =IF($H$9="P2",50,30) -> 30 | J31: =SPAN-J28-2*110 -> 2630
A35: P1
A38: P1
A39: P2
H44: P1 + P2
H46: mm | I46: trou lame
G47: X1 | H47: =E10+(I47-1)*215 -> 511.5 | I47: 2
G48: X2 | H48: =IF(I51=0,0,E10+(E8-I51)*215) -> 0 | I48: =IF(E7<=2,0,IF(E7<=3,I47+bankersround((I52-I47)/2,0),IF(E7<=4,I47+bankersround((I52-I47)*(1/3),0),IF(E7<=5,I47+bankersround((I52-I47)*(1/4),0),IF(E7<=6,I47+bankersround((I52-I47)*(1/5),0),0))))) -> 6
A49: P2 | G49: X3 | H49: =IF(I50=0,0,E10+((E8-I50)*215)) -> 1371.5 | I49: =IF(E7<=3,0,IF(E7<=4,I47+bankersround((I52-I47)*(2/3),0),IF(E7<=5,I47+bankersround((I52-I47)*(2/4),0),IF(E7<=6,I47+bankersround((I52-I47)*(2/5),0),0)))) -> 11
G50: X4 | H50: =IF(I49=0,0,E10+((E8-I49)*215)) -> 2446.5 | I50: =IF(E7<=3,0,IF(E7<=4,0,IF(E7<=5,I47+bankersround((I52-I47)*(3/4),0),IF(E7<=6,I47+bankersround((I52-I47)*(3/5),0),0)))) -> 16
G51: X5 | H51: =IF(I48=0,0,E10+((E8-I48))*215) -> 3521.5 | I51: =IF(E7<=5,0,I47+bankersround((I52-I47)*(4/5),0)) -> 0
G52: X6 | H52: =E10+(I52-1)*215 -> 4381.5 | I52: =E8-1 -> 20
